bitfinex/quotes_ETHUSD_20250822
["timestamp","ask_amount","ask_price","bid_price","bid_amount"]
[1755878093951,0.19907696,4643.6,4643.5,1.49127841]
[1755878094134,0.19907696,4643.6,4643.4,13.24159651]
[1755878094327,0.19827696,4643.5,4643.4,14.56575616]
[1755878095046,0.19827696,4643.5,4643.4,15.90214703]
[1755878095245,0.19827696,4643.5,4643.4,15.09523057]
[1755878096164,1.654,4644.7,4644.1,15.09523057]
[1755878097051,3.9,4644.6,4643.9,15.09523057]
[1755878097449,1.654,4644.7,4643.9,15.09523057]
[1755878097946,1.654,4644.7,4643.9,1.49145138]
[1755878098245,1.654,4644.7,4643.4,15.09523057]
[1755878098446,1.1013,4644.6,4642.9,0.13869676]
[1755878098617,0.66,4644.4,4643.0,0.02153779]
[1755878098820,0.66,4644.4,4642.6,0.02153965]
[1755878099146,0.66,4644.2,4642.5,11.75400711]
[1755878099454,2.2114,4644.7,4642.6,0.02153965]
[1755878099455,0.66,4644.0,4642.6,0.02153965]
[1755878099839,0.02153965,4643.9,4642.6,0.02153965]
[1755878100182,0.108,4643.2,4642.5,10.51031969]
[1755878100457,0.108,4644.3,4643.8,3.0]
[1755878100766,0.108,4643.9,4643.1,3.108]
[1755878101167,0.66,4644.5,4643.1,3.0]
[1755878101328,0.66,4644.3,4643.2,1.80952306]
[1755878101525,0.108,4643.7,4643.1,0.108]
[1755878102264,0.108,4643.7,4642.5,0.14050279]
[1755878102565,0.68691471,4644.3,4642.9,0.108]
[1755878102566,0.108,4643.4,4642.9,0.108]
[1755878102771,0.108,4643.4,4643.0,0.0107638]
[1755878103081,0.108,4643.4,4643.1,0.0107631]
[1755878103368,0.108,4643.4,4643.2,0.0107624]
[1755878103656,0.108,4643.4,4642.4,0.13678259]
[1755878103657,0.108,4643.4,4643.3,18.09523057]
[1755878103860,1.654,4643.8,4643.4,3.0]
[1755878104029,0.02,4645.8,4643.4,3.0]
[1755878104030,1.762,4644.5,4643.5,0.01075846]
[1755878104228,1.762,4644.5,4643.3,17.01275363]
[1755878104229,1.762,4644.5,4644.1,3.0]
[1755878104528,1.654,4644.5,4644.2,0.01075035]
[1755878105163,1.654,4644.5,4644.0,13.46875996]
[1755878105462,0.128,4644.8,4644.0,13.46875996]
[1755878105463,0.02,4644.8,4644.0,15.04367072]
[1755878105630,0.02,4645.8,4644.7,15.09523057]
[1755878105826,0.02,4645.8,4645.7,15.09523057]
[1755878106068,0.02,4646.8,4645.7,15.09523057]
[1755878106230,0.02,4646.8,4646.1,15.09523057]
[1755878106566,0.02,4646.8,4646.2,1.1773563]
[1755878106732,0.0192,4646.8,4645.9,3.0]
[1755878106929,0.0192,4646.8,4646.6,2.74156443]
[1755878107127,0.0192,4646.8,4646.7,3.9]
[1755878107325,0.0192,4646.8,4646.7,2.39258009]
[1755878107725,0.0192,4646.8,4646.2,3.64155437]
[1755878107925,0.19878771,4646.7,4646.5,15.09523057]
[1755878108178,0.19878771,4646.6,4646.5,14.01849985]
[1755878108384,0.19878771,4646.6,4646.5,12.51104009]
[1755878108671,1e-08,4646.8,4646.5,14.77704009]
[1755878108873,0.022,4647.8,4646.7,2.374]
[1755878109035,0.02,4648.8,4647.8,3.0]
[1755878109229,0.02,4648.8,4647.9,1.654]
[1755878109479,0.02,4648.8,4648.0,3.899]
[1755878109677,0.02,4648.8,4647.9,0.14704974]
[1755878109971,0.5779,4648.7,4648.1,0.1072]
[1755878110176,0.66,4648.6,4647.4,6.898]
[1755878110343,0.1072,4648.2,4647.1,3.898]
[1755878110660,0.1072,4648.2,4647.5,0.1072]
[1755878110975,0.1072,4648.2,4647.1,4.043597]
[1755878111133,0.1072,4648.2,4647.1,2.40611913]
[1755878111450,0.66,4648.1,4647.5,0.1072]
[1755878111667,0.66,4647.9,4646.7,3.898]
[1755878111834,0.002,4648.3,4646.2,1.654]
[1755878111835,0.66,4647.2,4646.2,1.654]
[1755878112032,0.66,4647.2,4646.4,4.006]
[1755878112360,0.002,4648.3,4646.8,3.0]
[1755878112559,0.002,4648.3,4647.2,3.0]
[1755878112761,0.002,4648.3,4647.9,3.0]
[1755878112962,0.002,4648.3,4647.9,8.70752306]
[1755878113338,0.002,4648.3,4647.9,5.70752306]
[1755878113538,0.002,4648.3,4647.9,1.80952306]
[1755878113743,0.002,4648.3,4648.0,3.898]
[1755878114260,0.002,4648.3,4648.0,2.82162171]
[1755878114454,0.002,4648.3,4648.1,0.46572811]
[1755878114842,0.002,4649.3,4648.3,30.0]
[1755878115063,0.02,4649.8,4649.2,15.09523057]
[1755878115264,0.02,4649.8,4649.3,1.654]
[1755878115450,0.02,4649.8,4649.4,1.49344463]
[1755878115654,0.02,4649.8,4649.4,0.70454446]
[1755878115869,0.02,4649.8,4649.7,0.1072]
[1755878116076,0.1072,4650.6,4649.7,0.22657147]
[1755878116278,0.1072,4650.6,4649.7,4.0042]
[1755878116571,0.1072,4650.6,4649.9,0.1072]
[1755878116775,0.02,4650.8,4650.4,15.09523057]
[1755878116998,0.002,4651.1,4650.7,0.1072]
[1755878117274,0.002,4651.1,4650.8,2.04653665]
[1755878117476,0.002,4651.1,4651.0,0.1072]
[1755878117679,0.002,4651.1,4650.5,4.0032]
[1755878117842,0.1072,4650.9,4650.3,3.0]
[1755878118043,0.66,4650.8,4650.3,3.0]
[1755878118445,0.66,4650.8,4650.1,0.1072]
[1755878118446,0.78399,4650.8,4650.1,0.1072]
[1755878118643,0.78319,4650.8,4650.1,4.0032]
[1755878119055,0.78319,4650.8,4650.1,3.59390927]
[1755878119379,0.6592,4650.8,4650.1,3.59390927]
[1755878119571,0.6592,4650.8,4650.1,2.08752217]
[1755878120086,0.1072,4650.9,4650.1,2.24927706]
[1755878120262,0.002,4651.1,4650.7,14.01929462]
[1755878120462,0.002,4651.1,4650.8,3.895]
[1755878120650,0.19766792,4651.0,4650.9,3.44442946]
[1755878121176,0.19766792,4651.0,4650.1,0.16175489]
[1755878121177,0.19766792,4651.0,4650.4,3.895]
[1755878121478,0.66,4650.8,4650.4,2.40878522]
[1755878121678,0.19757552,4650.7,4650.1,1.653]
[1755878121886,0.19757552,4650.6,4650.1,1.653]
[1755878122179,0.85757552,4650.5,4650.1,1.81152561]
[1755878122369,0.19757552,4650.4,4650.1,0.15852561]
[1755878122682,0.19757552,4650.3,4649.9,3.0]
[1755878122883,0.19757552,4650.2,4649.9,3.0]
[1755878123045,0.19757552,4650.1,4649.9,3.0]
[1755878123251,0.19757552,4650.0,4649.8,3.894]
[1755878123468,0.19754261,4649.9,4649.8,2.77703282]
[1755878123675,0.19754261,4649.9,4649.8,2.93707037]
[1755878123876,0.19754261,4649.9,4649.8,18.03230094]
[1755878124384,0.002,4651.1,4650.9,15.09523057]
[1755878124552,0.002,4651.1,4651.0,2.38794742]
[1755878125481,0.002,4651.1,4651.0,3.88190059]
[1755878125794,0.002,4651.1,4651.0,5.94481371]
[1755878126153,0.002,4651.1,4651.0,0.88190059]
[1755878126462,0.002,4651.1,4651.0,2.38694148]
[1755878127074,0.002,4651.1,4651.0,1.61240835]
[1755878127695,0.7731,4651.1,4650.8,0.02]
[1755878127860,1.1307,4651.0,4649.3,1.652]
[1755878128194,1.1307,4651.0,4649.9,3.893]
[1755878128350,1.1307,4651.0,4650.0,0.1187032]
[1755878128687,0.002,4651.6,4650.5,3.0]
[1755878128887,0.002,4651.6,4651.5,15.09523057]
[1755878129055,0.002,4651.6,4651.5,21.98823057]
[1755878129255,0.002,4651.6,4651.5,6.893]
[1755878129791,0.002,4651.6,4650.6,1.652]
[1755878129993,0.4727,4651.6,4650.7,3.893]
[1755878130191,0.002,4651.6,4651.1,0.1072]
[1755878130395,0.02,4651.8,4651.5,0.1072]
[1755878130688,0.02,4651.8,4651.6,2.38623704]
[1755878130890,0.0192,4651.8,4651.7,3.892]
[1755878131588,0.0192,4651.8,4651.7,5.38621807]
[1755878132360,0.0192,4651.8,4651.7,1.31068326]
[1755878132695,0.0192,4651.8,4651.7,2.38620406]
[1755878133099,0.0192,4651.8,4651.7,2.80074447]
[1755878133595,0.0192,4651.8,4651.7,1.29495053]
[1755878133762,0.0192,4651.8,4651.7,0.1072]
[1755878133962,0.0192,4651.8,4651.7,3.9992]
[1755878134462,0.002,4652.1,4651.8,3.0]
[1755878134690,0.002,4652.1,4651.7,3.9992]
[1755878134889,0.4707,4652.0,4651.5,1.652]
[1755878135079,0.4707,4651.9,4651.5,1.1357077]
[1755878135288,0.002,4652.1,4651.9,0.1072]
[1755878135594,0.002,4652.1,4652.0,13.58944634]
[1755878135809,0.002,4652.1,4652.0,13.69664634]
[1755878136491,0.97227968,4652.1,4652.0,13.58944634]
[1755878136795,0.20117968,4652.1,4652.0,12.08341391]
[1755878136970,0.20117968,4652.1,4652.0,11.82527439]
[1755878137173,0.20117968,4652.1,4650.8,1.672]
[1755878137375,0.20117968,4652.1,4651.6,3.0]
[1755878137376,0.19917968,4652.0,4651.6,3.0]
[1755878137571,0.19917968,4651.9,4651.6,3.0]
[1755878137776,0.19924094,4651.8,4651.5,18.98623057]
[1755878137975,0.19924094,4651.7,4651.5,18.98623057]
[1755878138177,0.19924094,4651.6,4651.5,18.98623057]
[1755878138374,0.19924094,4651.6,4651.3,15.09523057]
[1755878138578,0.002,4652.1,4651.5,3.891]
[1755878138807,0.19931691,4652.0,4651.5,2.38519329]
[1755878139012,0.002,4652.1,4651.5,2.38519329]
[1755878139013,0.19931691,4651.9,4651.5,2.38519329]
[1755878139315,0.65801691,4651.8,4651.1,3.89]
[1755878139476,0.19931691,4651.7,4651.1,3.89]
[1755878139676,0.19931691,4651.6,4651.2,3.0]
[1755878139996,0.002,4652.1,4651.4,3.0]
[1755878140305,0.002,4652.1,4651.4,6.89]
[1755878140670,0.002,4652.1,4651.4,5.38419878]
[1755878140869,0.002,4652.1,4651.5,1.66148546]
[1755878141273,0.002,4652.1,4651.4,3.70152486]
[1755878141530,0.3,4651.5,4650.8,0.02]
[1755878141672,0.66,4651.4,4650.2,13.60920607]
[1755878141875,0.66,4651.2,4650.2,13.60920607]
[1755878142220,0.66,4651.0,4649.8,0.18003755]
[1755878142505,0.66,4650.2,4649.8,0.18003755]
[1755878142709,0.66,4650.8,4648.0,13.74159848]
[1755878142881,0.02687767,4650.7,4647.8,0.02]
[1755878143081,0.66,4650.6,4647.7,14.5985857]
[1755878143317,0.66,4650.4,4649.1,15.09523057]
[1755878143674,0.66,4650.4,4649.2,1.49352336]
[1755878143897,1.652,4650.9,4649.8,15.09523057]
[1755878144084,0.4587,4650.4,4649.8,15.09523057]
[1755878144288,0.4579,4650.4,4649.8,14.01919551]
[1755878144596,0.4579,4650.4,4648.9,3.89]
[1755878144908,0.4579,4650.4,4648.9,2.38345045]
[1755878145775,0.4579,4650.4,4648.9,3.87689629]
[1755878146482,0.66,4650.3,4649.8,0.1072]
[1755878147514,0.66,4650.3,4649.0,2.25350958]
[1755878147912,0.68,4650.8,4649.0,0.74699353]
[1755878148102,0.66,4650.6,4649.0,0.74699353]
[1755878148409,0.66,4650.6,4648.8,15.11523057]
[1755878148410,0.66,4650.4,4648.8,0.02]
[1755878148797,0.66,4650.4,4648.7,1.51345365]
[1755878149503,0.66,4650.2,4648.3,1.92472479]
[1755878149697,0.66,4650.0,4647.7,2.08834023]
[1755878149884,0.66,4649.8,4647.7,0.93426292]
[1755878150392,0.66,4649.6,4647.1,18.03833627]
[1755878150894,0.66,4649.6,4647.1,16.82514228]
[1755878151097,0.66,4649.6,4647.2,3.0]
[1755878151310,0.66,4649.4,4647.2,3.0]
[1755878151515,0.66,4649.2,4647.2,3.0]
[1755878151814,0.66,4649.0,4646.5,14.01387196]
[1755878151977,0.66,4648.8,4646.5,14.01387196]
[1755878152181,0.66,4648.6,4646.5,14.14360248]
[1755878152380,0.66,4648.4,4647.8,0.02]
[1755878152610,0.66,4648.2,4647.8,0.02]
[1755878153015,0.66,4648.0,4646.5,0.12973052]
[1755878153200,0.66,4648.0,4645.8,14.62877571]
[1755878153408,0.4587,4648.1,4645.6,3.89]
[1755878153409,0.66,4647.8,4645.6,3.89]
[1755878153709,0.66,4647.6,4645.3,0.0913]
[1755878154012,0.66,4647.6,4645.2,2.60395898]
[1755878154225,0.68689213,4648.2,4645.2,2.76417118]
[1755878154515,0.66,4647.6,4646.0,15.09523057]
[1755878154988,0.66,4647.6,4646.1,1.49248901]
[1755878155378,0.6592,4647.6,4646.0,15.09523057]
[1755878156214,0.6592,4647.6,4645.3,15.22526306]
[1755878156430,0.6592,4647.6,4645.3,14.14845443]
[1755878156621,0.6592,4647.6,4645.3,14.2788808]
[1755878157024,0.6592,4647.6,4645.4,3.0]
[1755878157231,0.6592,4647.6,4645.3,14.2788808]
[1755878157414,0.66,4647.9,4646.0,15.09523057]
[1755878157732,0.66,4647.9,4647.8,0.02]
[1755878157889,4.85,4647.9,4647.8,0.02]
[1755878158090,0.66,4647.8,4646.0,13.60870497]
[1755878158706,0.66,4647.9,4646.0,13.60870497]
[1755878158891,0.66,4647.7,4646.0,13.60870497]
[1755878159092,0.66,4647.7,4646.1,0.97562418]
[1755878159387,0.66,4647.7,4646.0,12.53190924]
[1755878159586,0.66,4647.9,4646.0,12.53190924]
[1755878159804,4.55,4647.9,4646.0,12.53190924]
[1755878160000,5.05087,4647.9,4646.0,12.53190924]
[1755878160317,4.55,4647.9,4646.0,11.02439481]
[1755878160622,3.89,4647.8,4646.0,11.02439481]
[1755878160917,1.653,4648.1,4646.8,15.09523057]
[1755878161323,1.653,4648.1,4647.6,3.0]
[1755878161492,1.653,4648.1,4647.1,3.89]
[1755878161819,1.653,4648.1,4646.0,0.001]
[1755878161820,1.653,4648.1,4646.9,3.89]
[1755878162121,0.66,4648.0,4646.2,3.89]
[1755878162616,0.66,4648.0,4646.2,1.30623625]
[1755878163186,0.66,4648.0,4646.8,0.02]
[1755878163412,0.66,4648.0,4646.2,3.89]
[1755878163619,1.653,4648.1,4646.7,15.09523057]
[1755878163788,1.653,4648.1,4646.7,18.98523057]
[1755878163987,1.653,4648.1,4647.8,0.02]
[1755878164615,1.653,4648.1,4647.4,13.60823548]
[1755878165186,1.653,4648.1,4647.4,12.83320882]
[1755878165421,1.653,4648.1,4647.5,3.0]
[1755878165717,1.653,4648.1,4647.4,11.75678374]
[1755878166530,1.653,4648.1,4647.4,10.24978318]
[1755878167399,0.02,4647.8,4647.4,10.24978318]
[1755878167724,0.0192,4647.8,4647.4,10.24978318]
[1755878167922,0.0192,4647.8,4647.1,3.889]
[1755878168226,0.02,4648.8,4647.1,3.889]
[1755878168446,0.02,4648.8,4647.7,0.1072]
[1755878168594,0.02,4648.8,4647.1,4.72518312]
[1755878168595,0.02,4648.8,4647.1,1.41291272]
[1755878168797,0.02,4648.8,4648.7,0.1072]
[1755878169495,0.02,4648.8,4647.9,1.60040352]
[1755878169723,0.02,4648.8,4648.7,0.1072]
[1755878170538,0.02,4648.8,4647.6,2.67027907]
[1755878170741,0.02,4648.8,4648.7,0.1072]
[1755878171289,0.02,4648.8,4648.3,1.24491566]
[1755878171527,0.02,4648.8,4648.1,3.888]
[1755878171528,0.02,4648.8,4648.2,1.76929023]
[1755878171825,0.02,4648.8,4648.3,1.81]
[1755878172126,0.02,4648.8,4647.3,3.888]
[1755878172433,0.66,4648.6,4647.6,0.16091068]
[1755878172606,0.66,4648.6,4646.8,1.37038403]
[1755878172804,0.66,4648.6,4646.5,3.888]
[1755878173127,0.66,4648.4,4646.5,3.888]
[1755878173495,0.1072,4648.5,4646.1,15.09523057]
[1755878173496,0.66,4648.2,4646.1,3.887]
[1755878173735,0.1072,4647.9,4645.8,0.02]
[1755878174023,0.66,4646.8,4645.8,0.02]
[1755878174229,1.653,4646.7,4645.8,0.02]
[1755878174419,1.653,4647.0,4646.1,7.0]
[1755878174731,1.653,4647.5,4646.1,20.58782105]
[1755878175093,0.66,4647.4,4646.1,5.49259048]
[1755878175506,0.66,4647.4,4646.1,6.99999048]
[1755878175804,1.653,4647.5,4646.1,6.99999048]
[1755878175805,1.653,4647.5,4646.1,5.49266086]
[1755878176205,1.08774501,4647.5,4646.2,0.12030607]
[1755878176401,1.08774501,4647.5,4646.3,0.12030607]
[1755878176602,1.08774501,4647.5,4646.2,1.61292595]
[1755878177003,0.66,4647.4,4646.2,1.61292595]
[1755878177421,0.66,4647.4,4646.1,19.51123788]
[1755878177619,0.66,4647.4,4646.1,19.08053261]
[1755878177825,0.66,4647.4,4646.1,5.49266204]
[1755878178008,0.66,4647.4,4646.1,3.98530204]
[1755878178531,0.66,4647.4,4646.1,5.49263204]
[1755878178731,0.66,4647.4,4646.1,3.98528318]
[1755878179031,0.4362,4647.3,4646.1,3.98528318]
[1755878179414,0.4362,4647.3,4646.2,3.0]
[1755878179592,0.4362,4647.3,4646.1,5.49263318]
[1755878179792,0.4354,4647.3,4646.1,6.99999318]
[1755878180428,0.4354,4647.3,4645.8,0.02]
[1755878180615,0.4354,4647.3,4645.7,10.0]
[1755878180930,0.66,4647.4,4646.1,15.09523057]
[1755878181099,0.02,4647.8,4646.1,15.09523057]
[1755878181299,0.02,4647.8,4646.8,15.09523057]
[1755878181597,0.02,4647.8,4646.9,16.066]
[1755878181797,1.653,4647.7,4646.2,3.0]
[1755878182202,0.66,4647.6,4646.2,3.0]
[1755878182403,0.66,4647.4,4645.8,3.0]
[1755878182610,0.66,4647.4,4645.8,13.0]
[1755878182810,0.66,4647.4,4645.8,11.49265541]
[1755878183030,0.66,4647.5,4645.7,3.886]
[1755878183438,0.66,4647.5,4645.7,2.0340905]
[1755878183734,0.66,4647.5,4645.7,0.52674683]
[1755878183938,1.653,4647.7,4646.1,15.09523057]
[1755878184137,1.653,4647.7,4645.5,10.0]
[1755878184138,0.02,4647.8,4646.8,15.09523057]
[1755878184435,1.653,4648.1,4647.6,0.2265]
[1755878184809,0.1072,4649.0,4647.6,0.15752849]
[1755878185007,1.673,4648.8,4647.7,10.0]
[1755878185231,1.673,4648.8,4647.6,30.0]
[1755878185739,1.673,4648.8,4647.6,28.49320993]
[1755878186045,1.673,4648.8,4647.6,30.0]
[1755878186225,1.3501164,4648.8,4647.6,30.0]
[1755878186428,1.3501164,4648.8,4647.5,18.98123057]
[1755878186429,1.7863164,4648.8,4647.0,17.79468049]
[1755878186637,0.4362,4648.7,4647.0,16.71837366]
[1755878186942,0.4362,4648.7,4647.1,3.0]
[1755878187941,0.4362,4648.7,4647.0,13.58833668]
[1755878188240,1.3501164,4648.8,4647.1,9.464]
[1755878188646,1.3501164,4648.8,4647.1,13.349]
[1755878188858,1.3501164,4648.8,4647.7,13.58835147]
[1755878189146,0.002,4648.6,4647.7,13.58835147]
[1755878189317,0.002,4648.6,4647.1,3.11003099]
[1755878189520,0.002,4648.6,4647.1,2.03367799]
[1755878189916,0.002,4648.6,4647.7,3.0]
[1755878190954,0.002,4648.6,4647.7,1.49319461]
[1755878191249,0.002,4648.6,4647.1,0.52682205]
[1755878191754,0.002,4648.6,4647.8,0.02]
[1755878191922,0.002,4648.6,4647.2,15.09523057]
[1755878192112,0.3533164,4648.8,4647.2,15.09523057]
[1755878192542,0.3533164,4648.8,4647.2,14.01891631]
[1755878193045,1.0962,4648.7,4647.0,3.0]
[1755878193818,1.0962,4648.7,4646.9,3.884]
[1755878194552,0.66,4648.7,4647.5,15.09523057]
[1755878194962,0.66,4648.7,4647.5,13.58831916]
[1755878195119,0.3533164,4648.8,4647.5,13.58831916]
[1755878195520,0.3533164,4648.8,4647.5,12.51200372]
[1755878195915,0.3533164,4648.8,4647.6,3.0]
[1755878196650,0.3533164,4648.8,4647.5,18.09523057]
[1755878196853,0.3533164,4648.8,4647.8,3.0]
[1755878197956,0.66,4648.7,4647.8,3.02]
[1755878198163,0.66,4648.7,4648.2,15.09523057]
[1755878198327,0.66,4648.7,4648.3,3.0]
[1755878199027,0.3733164,4648.8,4647.8,0.02]
[1755878199028,0.66,4648.5,4647.8,0.02]
[1755878199254,0.66,4648.5,4647.8,3.02]
[1755878199630,0.66,4648.5,4647.8,0.02]
[1755878200070,0.9515,4647.9,4647.8,0.02]
[1755878200231,2.6045,4647.9,4647.8,0.02]
[1755878200437,3.0377,4647.9,4647.8,0.02]
[1755878201445,6.9197,4647.9,4647.8,0.02]
[1755878201867,6.9197,4647.9,4647.6,0.16450042]
[1755878201868,0.66,4647.8,4647.6,0.16450042]
[1755878202068,0.66,4647.6,4646.2,2.69457972]
[1755878202268,0.4332,4647.5,4645.6,3.001]
[1755878202474,0.66,4647.1,4645.6,0.001]
[1755878202673,0.4332,4647.5,4645.6,0.001]
[1755878202674,0.9515,4646.2,4645.6,0.001]
[1755878203169,1.3847,4646.2,4645.6,0.001]
[1755878203540,1.0932,4646.2,4645.6,0.001]
[1755878204171,0.66,4646.2,4646.1,3.001]
[1755878204373,3.881,4646.9,4646.1,3.001]
[1755878204374,0.6592,4646.8,4646.1,3.001]
[1755878205247,1.653,4647.0,4646.1,3.001]
[1755878205641,1.653,4647.0,4645.6,0.001]
[1755878205879,0.4332,4646.9,4645.6,0.001]
[1755878206346,0.66,4646.9,4645.9,0.12025937]
[1755878206588,1.653,4647.0,4645.6,0.001]
[1755878206589,0.66,4646.7,4646.0,0.12025937]
[1755878206788,0.66,4646.7,4646.1,0.12025937]
[1755878207152,0.66,4646.1,4645.6,0.001]
[1755878207352,2.313,4646.0,4645.9,0.12028776]
[1755878207554,2.313,4646.0,4645.6,0.001]
[1755878208067,2.313,4646.0,4645.9,0.12031227]
[1755878208268,1.653,4646.0,4645.9,0.12031227]
[1755878208584,1.653,4646.0,4645.9,18.46674284]
[1755878208958,1.45109391,4646.0,4645.9,18.46674284]
[1755878209360,1.45109391,4646.0,4645.9,18.34643057]
[1755878209685,1.45109391,4646.0,4645.9,18.09523057]
[1755878209887,1.45109391,4646.0,4645.9,18.34643057]
[1755878210597,1.45109391,4646.0,4645.9,18.09523057]
[1755878211470,1.45109391,4646.0,4645.9,18.34643057]
[1755878212069,2.11109391,4646.0,4645.9,3.0]
[1755878212274,2.83579391,4646.0,4645.9,3.0]
[1755878213585,2.11109391,4646.0,4645.9,3.0]
[1755878213786,2.83579391,4646.0,4645.9,3.0]
[1755878214096,2.54429391,4646.0,4645.9,3.0]
[1755878214264,1.45109391,4646.0,4645.9,18.34643057]
[1755878215305,1.45109391,4646.0,4645.9,18.09523057]
[1755878215465,1.45109391,4646.0,4645.9,3.0]
[1755878215671,2.83579391,4646.0,4645.9,3.0]
[1755878216325,1.45109391,4646.0,4645.9,3.0]
[1755878217173,1.45109391,4646.0,4645.6,0.001]
[1755878217174,2.83499391,4646.0,4645.6,0.001]
[1755878217375,0.71669939,4645.9,4645.6,0.001]
[1755878217587,1.00819939,4645.9,4645.6,0.001]
[1755878217803,0.7247,4645.9,4645.6,0.001]
[1755878218508,1.4927,4645.9,4645.6,0.001]
[1755878219817,1.51960544,4645.9,4645.6,0.001]
[1755878220815,1.4927,4645.9,4645.6,0.001]
[1755878221014,1.51960544,4645.9,4645.6,0.001]
[1755878221310,1.81659538,4645.9,4645.6,0.001]
[1755878222217,1.78968994,4645.9,4645.6,0.001]
[1755878223304,5.69459538,4645.9,4645.6,0.001]
[1755878223511,5.66768994,4645.9,4645.6,0.001]
[1755878224824,3.66,4645.8,4645.6,0.001]
[1755878224992,0.9784066,4645.7,4645.6,0.001]
[1755878225193,1.4116066,4645.7,4645.6,0.001]
[1755878225726,1.3847,4645.7,4645.6,0.001]
[1755878226039,1.4116066,4645.7,4645.6,0.001]
[1755878226203,5.62782422,4645.7,4645.6,0.001]
[1755878226393,5.60091762,4645.7,4645.6,0.001]
[1755878226599,5.71325163,4645.7,4645.6,0.001]
[1755878227829,6.81525163,4645.7,4645.6,0.001]
[1755878228127,10.69325163,4645.7,4645.6,0.001]
[1755878228343,6.81525163,4645.7,4645.6,0.001]
[1755878228512,6.47703401,4645.7,4645.6,0.001]
[1755878228896,6.47623401,4645.7,4645.6,0.001]
[1755878229329,0.22033401,4645.7,4645.6,0.001]
[1755878229542,5.75133401,4645.7,4645.6,0.001]
[1755878229832,6.47343401,4645.7,4645.6,0.001]
[1755878230131,6.46178185,4645.7,4645.6,0.001]
[1755878230432,10.89967399,4645.7,4645.6,0.001]
[1755878230728,3.66,4645.6,4645.3,0.001]
[1755878231031,1.0538,4645.4,4645.3,0.001]
[1755878231400,1.4901,4645.4,4645.3,0.001]
[1755878231720,9.07205818,4645.4,4645.3,0.001]
[1755878232202,5.19505818,4645.4,4645.3,0.001]
[1755878232603,9.07105818,4645.4,4645.3,0.001]
[1755878234125,9.07205818,4645.4,4645.3,0.001]
[1755878234911,5.19505818,4645.4,4645.3,0.001]
[1755878235228,9.07105818,4645.4,4645.3,0.001]
[1755878235396,4.68895818,4645.4,4645.3,0.001]
[1755878235597,4.68895818,4645.4,4645.3,0.2551]
[1755878235598,0.108,4645.4,4645.3,0.2551]
[1755878235803,3.984,4645.4,4645.3,0.2551]
[1755878236035,3.984,4645.4,4645.3,0.4139]
[1755878236351,4.5981,4645.4,4645.3,0.001]
[1755878236514,5.39300833,4645.4,4645.3,0.001]
[1755878236707,0.66,4645.3,4645.1,0.001]
[1755878237030,0.97270949,4645.2,4645.1,0.001]
[1755878237248,1.40900949,4645.2,4645.1,0.001]
[1755878237455,3.768,4645.2,4645.1,0.001]
[1755878237660,0.768,4645.2,4645.1,0.001]
[1755878238150,2.422,4645.2,4645.1,0.001]
[1755878238319,9.825,4645.2,4645.1,0.001]
[1755878238519,10.2613,4645.2,4645.1,0.001]
[1755878239120,9.5392,4645.2,4645.1,0.001]
[1755878239552,9.297,4645.2,4645.1,0.001]
[1755878239767,1.654,4645.2,4645.1,0.2551]
[1755878239937,5.529,4645.2,4645.1,0.4139]
[1755878241056,5.5282,4645.2,4645.1,0.4139]
[1755878241254,1.6532,4645.2,4645.1,0.4139]
[1755878241459,5.5272,4645.2,4645.1,0.4139]
[1755878241752,1.22076006,4645.8,4645.1,0.4139]
[1755878241753,3.874,4645.3,4645.1,0.4139]
[1755878241960,3.874,4645.3,4645.2,0.1588]
[1755878242271,3.874,4645.3,4645.2,0.4129]
[1755878243040,3.874,4645.3,4645.2,0.2541]
[1755878243244,4.534,4645.3,4645.2,0.2541]
[1755878243464,0.66,4645.2,4645.1,0.001]
[1755878243653,1.2043,4645.2,4645.1,0.001]
[1755878243865,1.4901,4645.2,4645.1,0.001]
[1755878244170,5.91073663,4645.2,4645.1,0.001]
[1755878245077,4.641,4645.2,4645.1,0.001]
[1755878245840,4.533,4645.2,4645.1,0.2551]
[1755878246141,4.641,4645.2,4645.1,0.001]
[1755878246341,4.9268,4645.2,4645.1,0.001]
[1755878246550,4.641,4645.2,4645.1,0.001]
[1755878246876,8.86533612,4645.2,4645.1,0.001]
[1755878247051,8.83842663,4645.2,4645.1,0.001]
[1755878247373,8.72942663,4645.2,4645.1,0.001]
[1755878247881,4.96542663,4645.2,4645.1,0.001]
[1755878248054,8.83742663,4645.2,4645.1,0.001]
[1755878248255,5.3621,4645.2,4645.1,0.001]
[1755878248441,4.64,4645.2,4645.1,0.001]
[1755878248850,5.3621,4645.2,4645.1,0.001]
[1755878249246,1.4901,4645.2,4645.1,0.001]
[1755878249467,8.38900949,4645.2,4645.1,0.001]
[1755878249666,9.21222758,4645.2,4645.1,0.001]
[1755878252670,5.34022758,4645.2,4645.1,0.001]
[1755878253180,9.21222758,4645.2,4645.1,0.001]
[1755878253348,9.21142758,4645.2,4645.1,0.001]
[1755878253749,5.33942758,4645.2,4645.1,0.001]
[1755878254052,9.21142758,4645.2,4645.1,0.001]